bitfinex/quotes_ETHUSD_20250106
["timestamp","ask_amount","ask_price","bid_price","bid_amount"]
[1736189547005,6.19606,3682.7,3682.6,35.0]
[1736189547681,8.98999081,3682.7,3682.6,35.0]
[1736189547861,8.73844081,3682.7,3681.8,2.71604]
[1736189548058,1.64362483,3682.6,3681.8,2.71604]
[1736189548798,1.64362483,3682.6,3681.9,35.0]
[1736189549006,0.03394878,3682.6,3681.9,35.0]
[1736189549312,3.48365042,3682.5,3681.9,35.0]
[1736189549506,3.48365042,3682.5,3682.1,2.71584]
[1736189549710,3.48365042,3682.5,3682.0,0.57323605]
[1736189549889,3.48365042,3682.5,3682.4,2.71562]
[1736189550086,3.48365042,3682.5,3682.4,37.71562]
[1736189550297,1.13589394,3682.7,3682.4,35.0]
[1736189550611,1.13589394,3682.7,3682.5,2.71553]
[1736189551113,1.13589394,3682.7,3682.6,37.71547]
[1736189551572,1.13589394,3682.7,3682.6,35.0]
[1736189551773,3.03874615,3683.1,3682.6,35.0]
[1736189551774,0.93912112,3683.0,3682.6,35.0]
[1736189553925,0.03394049,3682.9,3682.6,35.0]
[1736189554130,0.03394261,3682.9,3682.6,35.0]
[1736189556275,1.13589394,3683.0,3682.6,35.0]
[1736189556476,0.8056426,3683.1,3682.6,35.0]
[1736189556675,1.17032472,3683.1,3682.6,35.0]
[1736189558613,5.0,3683.0,3682.6,35.0]
[1736189558919,1.91899394,3682.8,3682.6,35.0]
[1736189559420,1.13589394,3682.8,3682.6,35.0]
[1736189559773,1.13589394,3682.8,3682.7,2.71539]
[1736189560415,1.13589394,3683.0,3682.7,2.71539]
[1736189560983,1.13589394,3683.0,3682.6,37.71546]
[1736189561937,1.13589394,3683.0,3682.6,35.0]
[1736189562741,2.11004201,3682.9,3682.6,35.0]
[1736189563442,0.8246,3682.8,3682.6,35.0]
[1736189563645,0.85854366,3682.8,3682.6,35.0]
[1736189563829,0.8246,3682.8,3682.6,35.0]
[1736189564048,4.31084716,3682.8,3682.6,35.0]
[1736189564360,3.48624716,3682.8,3682.6,35.0]
[1736189565041,3.48624716,3682.8,3682.6,2.71546]
[1736189565359,3.48624716,3682.9,3682.3,0.015]
[1736189565510,3.48624716,3682.9,3682.8,37.71532]
[1736189566151,2.26704615,3683.2,3682.8,37.71532]
[1736189566152,1.13589394,3683.2,3682.8,37.71532]
[1736189566329,1.13589394,3683.2,3682.8,2.71532]
[1736189566731,1.13589394,3683.2,3683.0,35.0]
[1736189567155,1.13589394,3683.2,3683.1,2.7151]
[1736189567654,2.07610146,3683.2,3683.1,2.7151]
[1736189567818,2.07610146,3683.2,3683.1,37.7151]
[1736189568954,2.08110146,3683.4,3683.1,37.7151]
[1736189569963,2.08110146,3683.4,3683.1,38.25374645]
[1736189570171,3.48624716,3683.3,3683.1,38.25374645]
[1736189570614,3.48624716,3683.3,3683.1,35.0]
[1736189571655,2.35035322,3683.3,3683.1,35.0]
[1736189571819,2.35035322,3683.3,3683.1,37.71508]
[1736189573041,0.94020752,3683.2,3683.1,37.71508]
[1736189574330,0.94020752,3683.2,3683.1,37.72258]
[1736189574532,0.94020752,3683.2,3683.1,38.27258]
[1736189575572,0.005,3683.4,3683.3,2.72245]
[1736189576146,0.005,3683.4,3683.3,38.27245]
[1736189577532,0.005,3683.4,3683.3,37.71495]
[1736189577735,0.005,3683.4,3683.3,35.0]
[1736189579225,3.49225762,3683.4,3683.3,35.0]
[1736189579425,3.5175047,3683.4,3683.3,35.0]
[1736189580284,2.38161076,3683.4,3683.3,35.0]
[1736189581574,3.5175047,3683.4,3683.3,35.0]
[1736189581783,3.5175047,3683.4,3683.3,37.71495]
[1736189582284,3.5175047,3683.4,3683.3,38.27245]
[1736189582846,0.03024708,3683.4,3683.3,38.27245]
[1736189586233,0.005,3683.4,3683.3,38.27245]
[1736189588772,0.03023893,3683.4,3683.3,38.27245]
[1736189590080,0.005,3683.4,3683.3,38.27245]
[1736189591565,0.005,3683.4,3683.3,40.86078906]
[1736189594290,0.005,3683.4,3683.3,41.05378906]
[1736189597993,0.005,3683.4,3683.3,44.05378906]
[1736189598180,1.13589394,3684.4,3684.2,2.71423]
[1736189598564,0.02584449,3684.3,3683.8,0.02319392]
[1736189598863,0.02584449,3684.3,3684.2,35.0]
[1736189599069,1.13589394,3684.5,3684.2,35.0]
[1736189599602,0.02498644,3684.4,3684.2,35.0]
[1736189600505,2.34783486,3684.6,3684.2,35.0]
[1736189601202,0.02499354,3684.5,3684.2,35.0]
[1736189601561,0.02499354,3684.5,3684.2,37.71427]
[1736189603206,0.7839,3684.7,3684.2,37.71427]
[1736189603366,0.7839,3684.7,3684.4,2.7141]
[1736189603562,0.02500322,3684.6,3684.5,2.71407]
[1736189603767,0.02500322,3684.6,3684.5,3.28657]
[1736189604064,1.13589394,3684.7,3684.6,3.28649]
[1736189604273,1.13589394,3684.7,3684.6,5.85982906]
[1736189604474,1.13589394,3684.7,3684.6,3.28649]
[1736189604681,1.16101666,3684.7,3684.4,2.71407]
[1736189604894,1.16101666,3684.7,3684.6,35.0]
[1736189605107,1.13589394,3684.7,3684.6,35.0075]
[1736189605573,1.13589394,3684.7,3684.6,37.72149]
[1736189605771,0.7942,3684.8,3684.6,37.72149]
[1736189605971,0.7942,3684.8,3684.6,2.72149]
[1736189606217,0.7942,3684.8,3684.3,0.193]
[1736189606501,0.7942,3684.8,3684.4,2.71413]
[1736189606502,0.02512272,3684.7,3684.4,2.71413]
[1736189606670,0.7942,3684.8,3684.4,2.71413]
[1736189606866,0.7942,3684.8,3684.5,35.0]
[1736189607070,0.7942,3684.8,3684.5,37.714]
[1736189608419,1.93449394,3685.1,3684.5,35.0]
[1736189608572,1.93449394,3685.1,3684.7,2.71392]
[1736189608911,0.02540945,3685.0,3684.7,2.71392]
[1736189609065,0.02540945,3685.0,3684.8,2.71383]
[1736189610011,0.02540945,3685.0,3684.6,2.71398]
[1736189610207,0.02540945,3685.0,3684.7,0.01568277]
[1736189610411,0.02540945,3685.0,3684.7,2.71389]
[1736189610777,0.02540945,3685.0,3684.5,0.01568277]
[1736189610975,0.02540945,3685.0,3684.8,2.7138]
[1736189611377,0.02540945,3685.0,3684.4,0.55]
[1736189611378,0.02540945,3685.0,3684.9,3.28695264]
[1736189611615,1.13589394,3685.3,3685.0,2.71366]
[1736189612001,1.13589394,3685.3,3685.1,2.71358]
[1736189612512,1.93449394,3685.5,3685.1,2.71358]
[1736189612847,1.13589394,3685.5,3685.4,3.2709]
[1736189613379,0.8299,3686.0,3685.5,2.71333]
[1736189613380,1.13589394,3685.6,3685.5,2.71333]
[1736189614094,1.13589394,3685.6,3685.4,0.5575]
[1736189614307,1.13589394,3685.6,3685.5,2.71333]
[1736189614690,1.13589394,3685.6,3685.4,0.54177187]
[1736189614884,3.09694615,3686.0,3685.4,0.54177187]
[1736189614885,0.8299,3686.0,3685.4,0.54177187]
[1736189615392,0.8299,3686.0,3685.4,3.25514187]
[1736189616322,0.8299,3686.0,3685.5,2.71333]
[1736189617527,0.82663237,3686.0,3685.5,2.71333]
[1736189618234,0.82663237,3686.0,3685.4,0.54177187]
[1736189618529,0.0339134,3685.9,3684.4,3.193]
[1736189618726,0.0339134,3685.9,3685.0,2.71368]
[1736189618900,0.0339134,3685.9,3685.1,0.01567523]
[1736189619094,0.0339134,3685.9,3685.1,0.54000493]
[1736189619289,0.0339134,3685.9,3685.1,0.5556802]
[1736189619826,0.0339134,3685.9,3685.1,0.54000493]
[1736189620005,0.30860174,3685.9,3685.1,0.55568016]
[1736189620393,0.30860174,3685.9,3685.1,0.54000493]
[1736189620597,0.7511,3685.8,3685.1,0.54000493]
[1736189620822,0.03391679,3685.7,3685.1,0.54000493]
[1736189621236,0.02497739,3685.6,3685.1,0.54000493]
[1736189621599,0.02497739,3685.6,3685.1,3.25362493]
[1736189621936,0.7511,3685.8,3685.2,2.71354]
[1736189622434,0.02484189,3685.7,3685.1,0.55568014]
[1736189622630,0.02484189,3685.7,3685.1,3.26928014]
[1736189623338,0.02484189,3685.7,3685.4,2.71337]
[1736189623804,0.7511,3685.8,3685.4,2.71337]
[1736189624009,0.0248451,3685.6,3685.4,2.71337]
[1736189624233,0.7511,3685.8,3685.4,0.0075]
[1736189624544,0.7899,3686.1,3685.7,2.71311]
[1736189624759,0.7899,3686.1,3685.8,2.71309]
[1736189625058,0.7899,3686.1,3685.8,2.71304]
[1736189625236,0.7899,3686.1,3685.9,2.71303]
[1736189625431,0.7899,3686.1,3685.5,0.01566988]
[1736189625649,0.7899,3686.1,3685.4,0.5575]
[1736189625970,0.7899,3686.1,3685.5,0.01566489]
[1736189626136,0.7899,3686.1,3685.7,2.71311]
[1736189626520,0.7899,3686.1,3685.5,0.01566489]
[1736189626737,0.7899,3686.1,3685.7,2.71313]
[1736189630772,0.7899,3686.1,3685.5,2.7208]
[1736189630927,0.7899,3686.1,3685.5,0.0075]
[1736189631132,0.7899,3686.1,3685.6,2.71322]
[1736189635777,0.8272,3685.9,3685.1,3.25362493]
[1736189636075,0.03391594,3685.8,3685.2,2.72922352]
[1736189636250,1.18459513,3685.9,3685.2,2.72922352]
[1736189636880,0.03391594,3685.8,3685.2,2.72922352]
[1736189637569,0.03391594,3685.8,3685.2,2.71355]
[1736189637775,0.7759,3685.7,3685.2,2.71355]
[1736189639050,0.03391595,3685.6,3684.7,0.193]
[1736189639578,0.03391595,3685.6,3685.0,0.53416651]
[1736189640476,0.7863,3685.5,3685.0,0.53416651]
[1736189640777,0.7863,3685.3,3684.4,2.71412]
[1736189640977,0.8106,3685.1,3684.4,2.71412]
[1736189641283,0.03392238,3685.0,3684.4,2.71412]
[1736189641784,0.8106,3685.1,3684.5,0.0156864]
[1736189642097,0.8106,3685.1,3684.8,2.7138]
[1736189642582,0.8106,3685.1,3684.9,2.71376]
[1736189642917,0.8106,3685.1,3684.7,2.72957211]
[1736189644582,0.8106,3685.1,3684.7,2.71389]
[1736189644942,0.8106,3685.1,3684.7,2.72957221]
[1736189645180,0.8106,3685.1,3684.7,2.71389]
[1736189645484,0.8106,3685.1,3684.7,2.72957221]
[1736189645785,0.8106,3685.1,3684.6,0.0075]
[1736189645980,0.8106,3685.1,3685.0,35.0]
[1736189646357,6.00864142,3685.1,3684.4,0.53264637]
[1736189646575,6.00864142,3685.1,3683.7,2.71465]
[1736189646576,2.71385,3684.8,3683.7,2.71465]
[1736189646780,2.74787792,3684.7,3683.8,35.53399072]
[1736189646972,0.8272,3684.0,3683.5,1.12927333]
[1736189647275,0.86113088,3684.0,3683.5,1.12927333]
[1736189647475,0.8272,3684.0,3683.5,1.12927333]
[1736189647870,0.8272,3684.0,3683.5,1.14497814]
[1736189648386,0.8272,3684.0,3683.5,0.01570481]
[1736189648699,0.8272,3684.0,3683.9,35.0]
[1736189649779,3.17533843,3684.0,3683.9,35.0]
[1736189650845,2.34813843,3684.0,3683.9,35.0]
[1736189651184,2.34813843,3684.0,3683.9,37.71451]
[1736189651449,1.13589394,3684.3,3683.9,37.71451]
[1736189651747,1.13589394,3684.3,3684.1,2.7143]
[1736189652086,1.13589394,3684.3,3684.2,35.0]
[1736189652689,1.13589394,3684.3,3684.2,37.72929]
[1736189653186,2.83380769,3684.9,3684.2,35.015]
[1736189653187,1.13589394,3684.9,3684.2,35.015]
[1736189653415,1.13589394,3684.9,3684.3,2.72987896]
[1736189653928,1.13589394,3684.9,3684.6,35.0]
[1736189654738,2.46748461,3685.0,3684.6,35.0]
[1736189654739,0.7672,3685.0,3684.6,35.0]
[1736189655100,0.80112367,3685.0,3684.6,35.0]
[1736189656244,0.7672,3685.0,3684.6,35.0]
[1736189656413,0.80112367,3685.0,3684.6,35.0]
[1736189656614,1.6935368,3685.0,3684.6,35.0]
[1736189657718,6.98060586,3685.0,3684.6,35.0]
[1736189657919,0.79,3684.8,3684.6,35.0]
[1736189658432,2.06632,3684.7,3684.6,35.0]
[1736189658812,0.79,3684.8,3684.6,35.0]
[1736189660129,1.77394867,3684.8,3683.9,3.2507553]
[1736189660326,1.77394867,3684.8,3684.0,0.01569556]
[1736189660520,0.03392696,3684.7,3684.0,0.01569556]
[1736189660717,1.80787563,3684.8,3684.0,0.01569556]
[1736189661114,1.80787563,3684.8,3684.6,35.0]
[1736189661314,1.77394867,3684.8,3684.6,35.0]
[1736189661814,11.23350908,3684.7,3684.6,35.0]
[1736189662044,11.98328314,3684.7,3684.6,35.0]
[1736189662921,9.01250314,3684.7,3684.6,35.0]
[1736189663252,5.91188408,3684.7,3684.6,35.0]
[1736189663457,3.83082,3684.7,3684.6,35.0]
[1736189663630,1.93249394,3685.0,3684.6,35.0]
[1736189663832,1.13589394,3684.9,3684.6,35.0]
[1736189665234,0.83052369,3685.0,3684.6,35.0]
[1736189665468,0.03392368,3684.9,3684.6,35.0]
[1736189667419,0.7966,3685.0,3684.6,35.0]
[1736189674640,1.16981761,3685.2,3684.6,35.0]
[1736189674641,1.13589394,3685.2,3684.7,0.01568833]
[1736189674964,1.13589394,3685.2,3685.1,2.71363]
[1736189675567,1.13589394,3685.2,3685.1,37.72113]
[1736189676064,1.13589394,3685.2,3685.1,38.28613]
[1736189676265,1.13589394,3685.8,3685.2,0.5725]
[1736189676440,1.13589394,3685.8,3685.7,3.27818]
[1736189676844,1.13589394,3685.8,3685.7,38.28568]
[1736189677839,1.13589394,3686.6,3685.9,2.71302]
[1736189678244,1.13589394,3686.6,3686.0,0.01565852]
[1736189678461,1.13589394,3686.6,3686.0,2.72857852]
[1736189679287,1.70024808,3686.7,3686.0,2.72857852]
[1736189679653,1.70024808,3686.7,3686.0,0.01565852]
[1736189680070,1.70024808,3686.7,3685.9,2.71298]
[1736189680978,1.13589394,3686.9,3686.5,2.71258]
[1736189681471,1.13589394,3686.9,3686.6,35.0]
[1736189682973,0.03390845,3687.0,3686.6,35.0]
[1736189683175,0.03390414,3687.1,3686.6,35.0]
[1736189683380,0.70013241,3687.1,3686.6,35.0]
[1736189685493,2.97969,3687.0,3686.6,35.0]
[1736189685649,0.81090619,3686.9,3686.6,35.0]
[1736189686557,2.06017,3686.8,3686.6,35.0]
[1736189686963,0.81090619,3686.9,3686.6,35.0]
[1736189687168,2.01016,3686.8,3686.6,35.0]
[1736189687489,1.48717154,3686.9,3686.6,35.0]
[1736189687789,0.777,3686.9,3686.6,35.0]
[1736189689894,0.70013445,3687.1,3686.6,35.0]
[1736189690100,0.03390618,3687.0,3686.6,35.0]
[1736189692007,2.74614618,3687.0,3686.6,35.0]
[1736189692383,7.57333906,3686.9,3686.6,35.0]
[1736189692698,2.71245,3686.7,3686.6,35.0]
[1736189692901,6.73044,3686.7,3686.6,35.0]
[1736189693103,6.35339,3686.7,3686.6,35.0]
[1736189694406,6.35339,3686.7,3685.6,2.71323]
[1736189694604,0.03390979,3686.6,3685.6,2.71323]
[1736189694804,3.43938441,3686.6,3685.6,2.71323]
[1736189695311,3.43938441,3686.6,3685.7,0.54185212]
[1736189695544,3.43938441,3686.6,3686.5,35.0]
[1736189695874,8.17397441,3686.6,3686.5,35.0]
[1736189696215,7.56568462,3686.6,3686.5,35.0]
[1736189697411,7.15497462,3686.6,3686.5,35.0]
[1736189699530,6.15503462,3686.6,3686.5,35.0]
[1736189699692,3.21695,3686.6,3686.5,35.0]
[1736189699893,3.85471926,3686.7,3686.5,35.0]
[1736189700094,3.02405,3686.6,3686.5,35.0]
[1736189700393,5.73657,3686.6,3686.5,35.0]
[1736189700588,5.42229,3686.6,3686.5,35.0]
[1736189700794,6.23907313,3686.6,3686.5,35.0]
[1736189701829,5.59947313,3686.6,3686.5,35.0]
[1736189702031,3.52930313,3686.6,3686.5,35.0]
[1736189702210,2.74635925,3686.7,3686.5,35.0]
[1736189702410,3.14847,3686.6,3685.7,2.71312]
[1736189702610,2.71245,3686.7,3685.7,2.72878375]
[1736189702811,0.03390997,3686.6,3685.7,2.72878375]
[1736189703020,0.03390997,3686.6,3686.2,35.0]
[1736189704849,5.0,3686.5,3686.2,35.0]
[1736189705051,0.03391032,3686.4,3686.2,35.0]
[1736189705243,4.84985,3686.3,3686.2,35.0]
[1736189707240,5.03391032,3686.5,3686.2,35.0]
[1736189707423,5.0,3686.4,3686.2,35.0]
[1736189708109,2.9409,3686.4,3686.2,35.0]
[1736189708427,4.26071,3686.5,3686.2,35.0]
[1736189708747,2.9409,3686.4,3686.2,35.0]
[1736189708945,4.22282,3686.5,3686.2,35.0]
[1736189709124,2.9409,3686.4,3686.2,35.0]
[1736189709327,4.2159,3686.5,3686.2,35.0]
[1736189709511,0.38677634,3686.6,3686.2,35.0]
[1736189709712,4.2159,3686.5,3686.2,35.0]
[1736189710149,0.38677634,3686.6,3686.2,35.0]
[1736189710461,0.03391034,3686.6,3686.2,35.0]
[1736189710666,0.03391034,3686.7,3686.2,35.0]
[1736189713231,0.93771142,3686.6,3686.2,35.0]
[1736189713524,0.93771142,3686.6,3686.5,2.7276]
[1736189713960,0.93771142,3686.6,3686.5,37.7276]
[1736189714759,1.13589394,3687.4,3686.7,2.71245]
[1736189715233,1.13589394,3687.4,3686.8,0.01564673]
[1736189715435,1.13589394,3687.4,3687.0,2.71221]
[1736189715823,0.93799714,3687.4,3687.0,2.71221]
[1736189716057,0.93799714,3687.4,3686.8,0.015]
[1736189716257,0.93799714,3687.4,3687.1,35.0]
[1736189717260,0.8033,3687.5,3687.1,35.0]
[1736189720757,1.16979356,3687.7,3687.1,35.0]
[1736189721638,1.13589394,3687.6,3687.1,35.0]
[1736189721962,0.03389962,3687.5,3687.1,35.0]
[1736189722829,2.34794457,3687.4,3687.1,35.0]
[1736189724468,0.93917783,3687.4,3687.1,35.0]
[1736189725731,1.16979356,3687.5,3687.1,35.0]
[1736189726462,0.8154,3687.3,3686.4,2.71261]
[1736189726662,0.03390431,3687.2,3686.4,2.71261]
[1736189726825,0.03390431,3687.2,3686.5,35.0]
[1736189727224,0.03390431,3687.2,3686.4,2.71261]
[1736189727455,0.55001932,3687.2,3686.4,2.71261]
[1736189727966,0.55001932,3687.2,3686.9,35.0]
[1736189728366,5.0,3687.1,3686.9,35.0]
[1736189728663,0.03390404,3687.0,3686.9,35.0]
[1736189728831,5.03390404,3687.0,3686.9,35.0]
[1736189729031,3.61671756,3687.0,3686.9,35.0]
[1736189729870,5.9642352,3687.0,3686.9,35.0]
[1736189730071,5.93033116,3687.0,3686.9,35.0]
[1736189730590,9.44826116,3687.0,3686.9,35.0]
[1736189730968,15.02160022,3687.0,3686.9,35.0]
[1736189731759,16.72188483,3687.0,3686.9,35.0]
[1736189732096,3.0,3686.9,3685.9,0.52917518]
[1736189732240,2.71246,3686.7,3685.9,0.52917518]
[1736189732438,0.03391046,3686.6,3685.9,0.52917518]
[1736189733039,0.03391046,3686.6,3686.0,35.0]
[1736189733599,0.03390977,3686.8,3686.0,2.7129]
[1736189733754,1.40833981,3686.6,3686.0,0.01565772]
[1736189733944,1.13557267,3686.5,3686.4,35.0]
[1736189736622,6.74317153,3686.5,3686.4,35.0]
[1736189736936,7.30396153,3686.5,3686.4,35.0]
[1736189737404,6.65393153,3686.5,3686.4,35.0]
[1736189737996,2.52367153,3686.5,3686.4,35.0]
[1736189740381,1.91607267,3686.5,3686.4,35.0]
[1736189740881,4.62867267,3686.5,3686.4,35.0]
[1736189742382,3.4931,3686.5,3686.4,35.0]
[1736189744898,6.4931,3686.5,3686.4,35.0]
[1736189745095,0.7736,3686.1,3685.1,2.7136]
[1736189745299,0.03391507,3686.0,3685.1,2.7136]
[1736189745451,0.03391507,3686.0,3685.6,35.0]
[1736189746583,2.71309,3685.9,3685.6,35.0]
[1736189746762,0.64331146,3685.8,3685.6,35.0]
[1736189747674,3.35642146,3685.8,3685.6,35.0]
[1736189749395,6.19482643,3685.7,3685.6,35.0]
[1736189749556,6.95442643,3685.7,3685.6,35.0]
[1736189752392,5.81929973,3685.7,3685.6,35.0]
[1736189752591,2.71327,3685.6,3684.6,0.54338028]
[1736189752777,0.03392061,3685.5,3684.6,0.54338028]
[1736189752996,0.03392061,3685.5,3684.7,0.01568286]
[1736189753169,0.03392061,3685.5,3684.7,2.72960286]
[1736189753480,2.34651973,3685.7,3685.1,0.0075]
[1736189753696,2.34651973,3685.7,3685.4,2.7134]
[1736189754019,2.34651973,3685.7,3685.2,2.71353]
[1736189754157,1.1351267,3685.8,3685.1,0.56567215]
[1736189754158,1.1351267,3685.8,3685.3,2.72914161]
[1736189755588,0.03391499,3686.0,3685.3,2.72914161]
[1736189755846,0.03391499,3686.3,3685.3,0.01567161]
[1736189756142,2.71304,3685.9,3684.9,2.71377]
[1736189756353,0.03391794,3685.8,3685.0,2.71369]
[1736189756846,0.03391794,3685.8,3685.1,2.71362]
[1736189756993,0.03391751,3685.9,3685.3,2.71346]
[1736189757544,0.03391703,3686.0,3685.3,2.71346]
[1736189757844,0.03391703,3686.0,3685.4,2.71339]
[1736189758396,0.03391554,3686.1,3685.4,2.71339]
[1736189758642,0.03391554,3686.1,3685.2,0.01567272]
[1736189758643,1.8947267,3686.4,3685.5,2.71331]
[1736189758856,1.8947267,3686.4,3685.6,0.01566908]
[1736189759149,1.8947267,3686.4,3685.8,2.71309]
[1736189759750,0.7596,3686.4,3685.8,2.71309]
[1736189760321,0.0339146,3686.5,3685.7,0.54483855]
[1736189760681,0.03390963,3686.7,3686.2,2.71282]
[1736189760839,1.1351267,3686.8,3686.3,2.71271]
[1736189761226,2.30095244,3687.1,3686.3,2.71271]
[1736189761227,1.1351267,3686.7,3686.3,2.71271]
[1736189762073,1.1351267,3686.7,3686.1,2.71287]
[1736189762281,0.7596,3686.6,3685.6,2.57333906]
[1736189762420,0.79350635,3686.6,3685.7,0.54483855]
[1736189762774,3.50603635,3686.6,3685.7,0.54483855]
[1736189763139,0.79350635,3686.6,3685.7,0.54483855]
[1736189764476,0.79350635,3686.6,3685.7,3.25797855]
[1736189764681,0.49279648,3686.5,3685.7,3.25797855]
[1736189764842,0.0339116,3686.4,3685.7,3.25797855]
[1736189765978,0.0339116,3686.4,3686.3,35.0]
[1736189766280,0.49279648,3686.5,3686.3,35.0]
[1736189766654,1.1351267,3686.7,3686.3,35.0]
[1736189766819,0.03391044,3686.8,3686.3,35.0]
[1736189766820,1.1351267,3686.8,3686.3,35.0]
[1736189767226,1.1351267,3686.8,3686.3,37.71271]
[1736189768175,0.93792395,3686.9,3686.3,37.71271]
[1736189771462,0.93792395,3686.9,3686.3,35.0]
[1736189771880,0.03390674,3686.8,3686.3,35.0]
[1736189773369,0.97183269,3686.9,3686.3,35.0]
[1736189774165,1.8947267,3687.0,3686.3,37.71269]
[1736189774166,2.34625381,3686.7,3686.3,37.71269]
[1736189775690,1.1351267,3687.0,3686.3,37.71269]
[1736189776782,1.1351267,3687.0,3686.6,2.71249]
[1736189776957,3.48138051,3687.0,3686.6,2.71249]
[1736189777155,3.48138051,3687.0,3686.7,2.71244]
[1736189777368,3.48138051,3687.0,3686.8,35.0]
[1736189777574,3.48138051,3687.0,3686.8,37.71236]
[1736189778146,3.48138051,3687.0,3686.9,2.7123]
[1736189778682,2.26704615,3687.3,3686.9,2.7123]
[1736189778683,1.1351267,3687.3,3686.9,2.7123]
[1736189780274,3.48138051,3687.4,3686.9,2.7123]
[1736189780972,3.48138051,3687.4,3686.6,0.565]
[1736189781167,3.48138051,3687.4,3687.0,35.0]
[1736189781541,4.74845494,3687.4,3687.0,35.0]
[1736189781747,0.0339006,3687.3,3687.0,35.0]
[1736189782360,4.91694838,3687.4,3687.0,35.0]
[1736189782702,0.03390347,3687.3,3687.0,35.0]
[1736189783066,0.93792395,3687.2,3687.0,35.0]
[1736189783263,0.33740286,3687.1,3687.0,35.0]
[1736189784903,1.09310286,3687.1,3687.0,35.0]
[1736189785706,6.15050202,3687.1,3687.0,35.0]
[1736189786001,3.43835202,3687.1,3686.4,2.71263]
[1736189786201,2.68265202,3687.1,3686.5,2.72818271]
[1736189786422,1.1351267,3687.2,3686.6,35.0]
[1736189786599,2.1041774,3687.4,3686.7,2.71245]
[1736189786782,0.03390297,3687.2,3686.6,37.71252]
[1736189786977,0.03390297,3687.2,3686.6,2.71252]
[1736189787609,0.03390297,3687.2,3687.1,35.0]
[1736189787803,0.03390297,3687.3,3687.1,35.0]
[1736189788008,1.9375574,3687.4,3687.1,35.0]
[1736189788178,2.74262024,3687.4,3687.1,35.0]
[1736189788523,0.03390245,3687.3,3687.1,35.0]
[1736189789215,1.1343574,3687.6,3686.8,0.0075]
[1736189789398,1.1343574,3687.6,3687.1,2.71211]
[1736189789714,1.1343574,3687.6,3687.5,35.0]
[1736189789715,1.16825695,3687.6,3687.5,35.0]
[1736189789906,1.1343574,3687.6,3687.5,35.0]
[1736189790203,3.0,3687.8,3687.5,35.0]
[1736189790406,0.88981259,3687.7,3687.5,35.0]
[1736189790611,0.0338989,3687.6,3687.5,35.0]
[1736189792081,0.8262989,3687.6,3687.5,35.0]
[1736189793210,3.5380889,3687.6,3687.5,35.0]
[1736189793708,6.5380889,3687.6,3687.5,35.0]
[1736189794011,7.88883305,3687.6,3687.5,35.0]
[1736189794309,8.82622856,3687.6,3687.5,35.0]
[1736189794682,6.11443856,3687.6,3687.5,35.0]
[1736189794890,3.11443856,3687.6,3687.5,35.0]
[1736189795083,1.72979551,3687.6,3687.5,35.0]
[1736189795287,0.93739551,3687.6,3687.5,35.0]
[1736189795485,2.34369436,3687.6,3687.5,35.0]
[1736189796713,3.15169395,3687.6,3687.5,35.0]
[1736189797010,0.80799959,3687.6,3687.5,35.0]
[1736189797217,1.53066445,3687.6,3687.5,35.0]
[1736189799782,3.87615053,3687.6,3687.5,35.0]
[1736189801219,9.58794053,3687.6,3687.5,35.0]
[1736189801534,9.55404094,3687.6,3687.5,35.0]
[1736189802278,9.55404094,3687.6,3686.4,0.54264995]
[1736189802482,9.55404094,3687.6,3685.9,5.57333906]
[1736189802483,2.71228,3687.0,3685.9,2.71303]
[1736189802730,0.0339077,3686.9,3685.9,3.24254663]
[1736189802886,2.7462077,3686.9,3686.0,35.0]
[1736189803288,0.8051,3686.8,3686.0,35.0]
[1736189803519,0.03390871,3686.7,3686.0,35.0]
[1736189803727,0.03390871,3686.7,3686.0,37.71296]
[1736189804021,1.1358687,3686.7,3686.0,37.71296]
[1736189804726,0.03390869,3686.6,3686.0,37.71296]
[1736189804895,1.1358687,3686.7,3686.0,37.71296]
[1736189804896,0.93819443,3686.7,3686.0,37.71296]
[1736189805086,0.93819443,3686.7,3686.1,2.71289]
[1736189805699,0.93819443,3686.7,3686.2,35.0]
[1736189806531,2.91307182,3686.8,3686.2,35.0]
[1736189807600,3.48372027,3686.7,3686.1,2.71289]
[1736189807807,3.48372027,3686.7,3686.2,2.59649803]
[1736189808126,3.48372027,3686.7,3686.6,38.28502]
[1736189808936,3.48372027,3687.2,3687.1,2.71215]
[1736189809606,3.48372027,3687.2,3687.1,37.71215]
[1736189810299,2.26717989,3687.5,3687.1,37.71215]
[1736189810300,2.07406313,3687.6,3687.1,37.71215]
[1736189810809,0.03389923,3687.5,3687.1,2.71215]
[1736189811348,0.03389923,3687.5,3687.4,35.0]
[1736189811644,2.07406313,3687.6,3687.4,35.0]
[1736189811842,3.48372027,3687.6,3687.4,35.0]
[1736189812974,2.34785157,3687.5,3687.4,35.0]
[1736189813378,2.34785157,3687.5,3687.4,37.71193]
[1736189814339,1.13654472,3687.8,3687.4,37.71193]
[1736189816104,2.07473915,3687.9,3687.4,37.71193]
[1736189817595,2.07473915,3688.1,3687.4,37.71193]
[1736189817902,2.07473915,3688.1,3687.5,0.01563359]
[1736189818103,2.07473915,3688.1,3687.8,2.71164]
[1736189818314,2.07473915,3688.1,3688.0,35.0]
[1736189819013,3.48379946,3688.3,3688.0,35.0]
[1736189819173,3.48379946,3688.3,3687.8,2.71164]
[1736189819575,3.48379946,3688.3,3688.2,35.0]
[1736189820399,2.34725474,3688.3,3688.2,35.0]
[1736189821713,0.005,3688.4,3688.2,35.0]
[1736189825031,0.8164,3688.4,3688.2,35.0]
[1736189825904,0.005,3688.4,3688.2,35.0]
[1736189830876,0.005,3688.4,3687.9,3.2531728]
[1736189831116,0.005,3688.4,3688.0,0.01562198]
[1736189831320,0.005,3688.4,3687.9,3.2531728]
[1736189831461,0.005,3688.4,3688.3,35.0]
[1736189831980,0.02872566,3688.4,3688.3,35.0]